[Event "Titled Tuesday Blitz May 03 Late 2022"]
[White "Karttunen, Mika"]
[Black "Melikyan, Gnel"]
[WhiteFideId "502081"]
[BlackFideId "54109990"]
[WhiteElo "2343"]
[BlackElo "1772"]
[Result "0-1"]
[Round "10"]
[TimeControl "180+1"]
[Date "2022.05.03"]
[WhiteClock "0:00:03"]
[BlackClock "0:00:52"]

1. d4 {[%clk 0:03:00]}  d5 {[%clk 0:02:59]} 2. Bf4 {[%clk 0:03:00]}  c6 {[%clk 0:02:59]} 3. e3 {[%clk 0:02:58]}  Qb6 {[%clk 0:02:59]} 4. Qc1 {[%clk 0:02:50]}  Bf5 {[%clk 0:02:59]} 5. Nd2 {[%clk 0:02:49]}  Nd7 {[%clk 0:02:58]} 6. Ngf3 {[%clk 0:02:48]}  e6 {[%clk 0:02:58]} 7. c3 {[%clk 0:02:39]}  Ngf6 {[%clk 0:02:55]} 8. Be2 {[%clk 0:02:39]}  Be7 {[%clk 0:02:52]} 9. O-O {[%clk 0:02:39]}  O-O {[%clk 0:02:46]} 10. h3 {[%clk 0:02:38]}  h6 {[%clk 0:02:45]} 11. b4 {[%clk 0:02:09]}  a5 {[%clk 0:02:37]} 12. a3 {[%clk 0:02:08]}  Qa7 {[%clk 0:02:35]} 13. Nb3 {[%clk 0:02:01]}  a4 {[%clk 0:02:31]} 14. Nc5 {[%clk 0:02:00]}  b6 {[%clk 0:02:25]} 15. Nxd7 {[%clk 0:02:00]}  Nxd7 {[%clk 0:02:25]} 16. c4 {[%clk 0:02:00]}  Rfc8 {[%clk 0:02:21]} 17. Ne5 {[%clk 0:01:38]}  Nxe5 {[%clk 0:02:19]} 18. Bxe5 {[%clk 0:01:38]}  Qd7 {[%clk 0:02:13]} 19. Qc3 {[%clk 0:01:28]}  Bd6 {[%clk 0:02:12]} 20. Bxd6 {[%clk 0:01:04]}  Qxd6 {[%clk 0:02:12]} 21. Rac1 {[%clk 0:01:04]}  Qd7 {[%clk 0:02:07]} 22. Rfd1 {[%clk 0:00:55]}  Bg6 {[%clk 0:01:57]} 23. Bd3 {[%clk 0:00:51]}  Bxd3 {[%clk 0:01:55]} 24. Qxd3 {[%clk 0:00:51]}  Rab8 {[%clk 0:01:52]} 25. Rc3 {[%clk 0:00:45]}  b5 {[%clk 0:01:47]} 26. cxd5 {[%clk 0:00:41]}  cxd5 {[%clk 0:01:47]} 27. Rc5 {[%clk 0:00:41]}  Rxc5 {[%clk 0:01:46]} 28. bxc5 {[%clk 0:00:37]}  b4 {[%clk 0:01:44]} 29. axb4 {[%clk 0:00:37]}  Rxb4 {[%clk 0:01:45]} 30. Qa6 {[%clk 0:00:31]}  Qb7 {[%clk 0:01:34]} 31. Qa5 {[%clk 0:00:26]}  Rc4 {[%clk 0:01:30]} 32. Ra1 {[%clk 0:00:25]}  Qb3 {[%clk 0:01:28]} 33. Qa8+ {[%clk 0:00:14]}  Kh7 {[%clk 0:01:28]} 34. c6 {[%clk 0:00:14]}  Qc2 {[%clk 0:01:24]} 35. Qb7 {[%clk 0:00:09]}  Kg6 {[%clk 0:01:18]} 36. Qa6 {[%clk 0:00:08]}  Qe2 {[%clk 0:00:52]} 37. Rxa4 {[%clk 0:00:04]}  Qd1+ {[%clk 0:00:51]} 38. Kh2 {[%clk 0:00:04]}  Qxa4 {[%clk 0:00:51]} 39. Qb7 {[%clk 0:00:03]}  Qxc6 {[%clk 0:00:52]} 0-1


[Site "https://www.chess.com"]

[Event "Titled Tuesday Blitz May 03 Late 2022"]
[White "Kim, Sergey"]
[Black "Stanisz, Patryk"]
[WhiteFideId "13700570"]
[BlackFideId "1123106"]
[WhiteElo "2507"]
[BlackElo "1833"]
[Result "1-0"]
[Round "10"]
[TimeControl "180+1"]
[Date "2022.05.03"]
[WhiteClock "0:00:43"]
[BlackClock "0:00:01"]

1. d4 {[%clk 0:03:00]}  d5 {[%clk 0:02:59]} 2. c4 {[%clk 0:03:01]}  c6 {[%clk 0:02:59]} 3. Nf3 {[%clk 0:03:00]}  Nf6 {[%clk 0:03:00]} 4. Qc2 {[%clk 0:03:00]}  dxc4 {[%clk 0:02:59]} 5. Qxc4 {[%clk 0:03:00]}  Bf5 {[%clk 0:02:55]} 6. e3 {[%clk 0:03:00]}  Nbd7 {[%clk 0:02:54]} 7. Bd3 {[%clk 0:03:00]}  Nb6 {[%clk 0:02:53]} 8. Qc2 {[%clk 0:03:00]}  Bxd3 {[%clk 0:02:51]} 9. Qxd3 {[%clk 0:03:00]}  e6 {[%clk 0:02:52]} 10. O-O {[%clk 0:02:59]}  Be7 {[%clk 0:02:50]} 11. Nc3 {[%clk 0:02:59]}  O-O {[%clk 0:02:50]} 12. e4 {[%clk 0:02:59]}  h6 {[%clk 0:02:45]} 13. Rd1 {[%clk 0:02:58]}  Qc7 {[%clk 0:02:40]} 14. Qe2 {[%clk 0:02:51]}  Rfd8 {[%clk 0:02:38]} 15. h3 {[%clk 0:02:50]}  a6 {[%clk 0:02:33]} 16. Be3 {[%clk 0:02:44]}  c5 {[%clk 0:02:30]} 17. Rac1 {[%clk 0:02:42]}  cxd4 {[%clk 0:02:27]} 18. Bxd4 {[%clk 0:02:37]}  Nc8 {[%clk 0:01:18]} 19. Nd5 {[%clk 0:02:28]}  Qa5 {[%clk 0:01:16]} 20. b4 {[%clk 0:02:23]}  Qa4 {[%clk 0:01:10]} 21. Rxc8 {[%clk 0:02:05]}  exd5 {[%clk 0:01:10]} 22. Rxa8 {[%clk 0:02:00]}  Rxa8 {[%clk 0:01:09]} 23. Bxf6 {[%clk 0:01:50]}  Bxf6 {[%clk 0:01:07]} 24. exd5 {[%clk 0:01:44]}  Rd8 {[%clk 0:00:29]} 25. Qd3 {[%clk 0:01:43]}  Qxb4 {[%clk 0:00:23]} 26. g3 {[%clk 0:01:40]}  Rd6 {[%clk 0:00:15]} 27. Kg2 {[%clk 0:01:39]}  b5 {[%clk 0:00:14]} 28. Nd2 {[%clk 0:01:36]}  Qc5 {[%clk 0:00:11]} 29. Ne4 {[%clk 0:01:36]}  Qc7 {[%clk 0:00:06]} 30. Nxd6 {[%clk 0:01:36]}  Qxd6 {[%clk 0:00:07]} 31. Qe4 {[%clk 0:01:33]}  g6 {[%clk 0:00:06]} 32. Qe8+ {[%clk 0:01:30]}  Kg7 {[%clk 0:00:07]} 33. Qc6 {[%clk 0:01:30]}  Be7 {[%clk 0:00:07]} 34. Qxd6 {[%clk 0:01:29]}  Bxd6 {[%clk 0:00:08]} 35. f4 {[%clk 0:01:28]}  Kf6 {[%clk 0:00:07]} 36. Kf3 {[%clk 0:01:27]}  a5 {[%clk 0:00:08]} 37. Ke4 {[%clk 0:01:24]}  a4 {[%clk 0:00:08]} 38. Rc1 {[%clk 0:01:22]}  b4 {[%clk 0:00:06]} 39. Rc6 {[%clk 0:01:21]}  Ke7 {[%clk 0:00:07]} 40. Ra6 {[%clk 0:01:18]}  a3 {[%clk 0:00:07]} 41. Ra7+ {[%clk 0:01:16]}  Kf6 {[%clk 0:00:05]} 42. Rb7 {[%clk 0:01:16]}  h5 {[%clk 0:00:04]} 43. g4 {[%clk 0:01:15]}  hxg4 {[%clk 0:00:03]} 44. hxg4 {[%clk 0:01:15]}  Bc5 {[%clk 0:00:02]} 45. g5+ {[%clk 0:01:11]}  Kg7 {[%clk 0:00:02]} 46. Rb5 {[%clk 0:01:07]}  Bd6 {[%clk 0:00:02]} 47. Rb6 {[%clk 0:01:04]}  Be7 {[%clk 0:00:02]} 48. d6 {[%clk 0:01:03]}  Bd8 {[%clk 0:00:03]} 49. Rxb4 {[%clk 0:01:03]}  Ba5 {[%clk 0:00:03]} 50. Ra4 {[%clk 0:01:01]}  Bb6 {[%clk 0:00:03]} 51. Rxa3 {[%clk 0:01:00]}  Kf8 {[%clk 0:00:04]} 52. Ra6 {[%clk 0:00:59]}  Bc5 {[%clk 0:00:02]} 53. Rc6 {[%clk 0:00:58]}  Bb4 {[%clk 0:00:02]} 54. f5 {[%clk 0:00:54]}  gxf5+ {[%clk 0:00:02]} 55. Kxf5 {[%clk 0:00:54]}  Ke8 {[%clk 0:00:03]} 56. Rb6 {[%clk 0:00:52]}  Bc5 {[%clk 0:00:01]} 57. Ra6 {[%clk 0:00:48]}  Kd7 {[%clk 0:00:01]} 58. Ke5 {[%clk 0:00:48]}  Bb4 {[%clk 0:00:01]} 59. a4 {[%clk 0:00:47]}  Bc3+ {[%clk 0:00:01]} 60. Kd5 {[%clk 0:00:45]}  Bd2 {[%clk 0:00:01]} 61. Ra7+ {[%clk 0:00:45]}  Kc8 {[%clk 0:00:01]} 62. Rxf7 {[%clk 0:00:44]}  Bxg5 {[%clk 0:00:01]} 63. Kc6 {[%clk 0:00:43]} 1-0


[Site "https://www.chess.com"]

[Event "Titled Tuesday Blitz May 03 Late 2022"]
[White "Kohler, Aran"]
[Black "Hernandez Bermudez, Ulises Eduardo"]
[WhiteFideId "1002856"]
[BlackFideId "3902510"]
[WhiteElo "2330"]
[BlackElo "2056"]
[Result "0-1"]
[Round "10"]
[TimeControl "180+1"]
[Date "2022.05.03"]
[WhiteClock "0:00:07"]
[BlackClock "0:01:08"]

1. c4 {[%clk 0:02:59]}  Nf6 {[%clk 0:02:53]} 2. Nc3 {[%clk 0:02:59]}  g6 {[%clk 0:02:51]} 3. e4 {[%clk 0:02:59]}  d6 {[%clk 0:02:50]} 4. d4 {[%clk 0:02:59]}  Bg7 {[%clk 0:02:50]} 5. Nf3 {[%clk 0:02:59]}  O-O {[%clk 0:02:49]} 6. Be2 {[%clk 0:03:00]}  e5 {[%clk 0:02:48]} 7. O-O {[%clk 0:03:00]}  Nc6 {[%clk 0:02:46]} 8. d5 {[%clk 0:03:00]}  Ne7 {[%clk 0:02:46]} 9. Bg5 {[%clk 0:03:00]}  Nd7 {[%clk 0:02:40]} 10. Bxe7 {[%clk 0:02:40]}  Qxe7 {[%clk 0:02:38]} 11. b4 {[%clk 0:02:41]}  f5 {[%clk 0:02:34]} 12. Nd2 {[%clk 0:02:41]}  f4 {[%clk 0:02:32]} 13. Bg4 {[%clk 0:02:40]}  h5 {[%clk 0:02:26]} 14. Be6+ {[%clk 0:02:40]}  Kh7 {[%clk 0:02:25]} 15. Nb3 {[%clk 0:02:35]}  f3 {[%clk 0:02:22]} 16. gxf3 {[%clk 0:02:31]}  Nb6 {[%clk 0:02:11]} 17. Bxc8 {[%clk 0:02:21]}  Raxc8 {[%clk 0:02:12]} 18. c5 {[%clk 0:02:16]}  Nd7 {[%clk 0:02:11]} 19. c6 {[%clk 0:01:49]}  bxc6 {[%clk 0:02:10]} 20. dxc6 {[%clk 0:01:49]}  Nb6 {[%clk 0:02:08]} 21. Nd5 {[%clk 0:01:49]}  Qh4 {[%clk 0:02:03]} 22. Kh1 {[%clk 0:01:43]}  Bh6 {[%clk 0:01:58]} 23. Rg1 {[%clk 0:01:39]}  Qxf2 {[%clk 0:01:54]} 24. Rg2 {[%clk 0:01:38]}  Qxf3 {[%clk 0:01:51]} 25. Qxf3 {[%clk 0:01:38]}  Rxf3 {[%clk 0:01:50]} 26. Nxb6 {[%clk 0:01:26]}  axb6 {[%clk 0:01:46]} 27. Rag1 {[%clk 0:01:23]}  Be3 {[%clk 0:01:43]} 28. Re1 {[%clk 0:01:11]}  Rcf8 {[%clk 0:01:42]} 29. Rge2 {[%clk 0:01:06]}  Bg5 {[%clk 0:01:31]} 30. Kg2 {[%clk 0:00:51]}  Rc3 {[%clk 0:01:26]} 31. Rb1 {[%clk 0:00:46]}  Rxc6 {[%clk 0:01:22]} 32. a4 {[%clk 0:00:46]}  Rc4 {[%clk 0:01:18]} 33. a5 {[%clk 0:00:25]}  Rxb4 {[%clk 0:01:16]} 34. a6 {[%clk 0:00:21]}  Ra8 {[%clk 0:01:14]} 35. Ra2 {[%clk 0:00:19]}  b5 {[%clk 0:01:13]} 36. a7 {[%clk 0:00:18]}  Ra4 {[%clk 0:01:12]} 37. Rxa4 {[%clk 0:00:17]}  bxa4 {[%clk 0:01:12]} 38. Na5 {[%clk 0:00:17]}  Rxa7 {[%clk 0:01:11]} 39. Nc6 {[%clk 0:00:17]}  Ra6 {[%clk 0:01:09]} 40. Nb4 {[%clk 0:00:07]}  Rb6 {[%clk 0:01:08]} 0-1


[Site "https://www.chess.com"]

[Event "Titled Tuesday Blitz May 03 Late 2022"]
[White "Kujawski, Adam"]
[Black "Mikhalsky, Vladimir"]
[WhiteFideId "1100920"]
[BlackFideId "14144352"]
[WhiteElo "2053"]
[BlackElo "2301"]
[Result "0-1"]
[Round "10"]
[TimeControl "180+1"]
[Date "2022.05.03"]
[WhiteClock "0:00:04"]
[BlackClock "0:00:18"]

1. e4 {[%clk 0:03:00]}  g6 {[%clk 0:02:55]} 2. d4 {[%clk 0:03:00]}  Bg7 {[%clk 0:02:55]} 3. Nc3 {[%clk 0:02:59]}  d6 {[%clk 0:02:56]} 4. h3 {[%clk 0:02:59]}  Nf6 {[%clk 0:02:55]} 5. Nf3 {[%clk 0:02:59]}  O-O {[%clk 0:02:55]} 6. Be3 {[%clk 0:02:58]}  Nc6 {[%clk 0:02:53]} 7. Be2 {[%clk 0:02:56]}  e5 {[%clk 0:02:52]} 8. dxe5 {[%clk 0:02:56]}  dxe5 {[%clk 0:02:52]} 9. O-O {[%clk 0:02:54]}  a6 {[%clk 0:02:48]} 10. Qxd8 {[%clk 0:02:52]}  Rxd8 {[%clk 0:02:48]} 11. Rfd1 {[%clk 0:02:50]}  Re8 {[%clk 0:02:47]} 12. Bc4 {[%clk 0:02:42]}  h6 {[%clk 0:02:45]} 13. Nd5 {[%clk 0:02:37]}  Nxd5 {[%clk 0:02:43]} 14. Bxd5 {[%clk 0:02:37]}  Nb4 {[%clk 0:02:37]} 15. Rac1 {[%clk 0:02:31]}  Nxd5 {[%clk 0:02:31]} 16. exd5 {[%clk 0:02:31]}  a5 {[%clk 0:02:01]} 17. c4 {[%clk 0:02:29]}  a4 {[%clk 0:02:00]} 18. Bc5 {[%clk 0:02:23]}  b6 {[%clk 0:01:59]} 19. Ba3 {[%clk 0:02:22]}  e4 {[%clk 0:01:46]} 20. Nd4 {[%clk 0:02:21]}  e3 {[%clk 0:01:46]} 21. Nb5 {[%clk 0:01:55]}  exf2+ {[%clk 0:01:35]} 22. Kxf2 {[%clk 0:01:55]}  Be5 {[%clk 0:01:30]} 23. d6 {[%clk 0:01:54]}  cxd6 {[%clk 0:01:24]} 24. Nc7 {[%clk 0:01:46]}  Be6 {[%clk 0:01:02]} 25. Nxa8 {[%clk 0:01:39]}  Rxa8 {[%clk 0:01:01]} 26. Bxd6 {[%clk 0:01:37]}  Bxb2 {[%clk 0:01:00]} 27. Rc2 {[%clk 0:01:29]}  a3 {[%clk 0:00:59]} 28. Bb4 {[%clk 0:01:09]}  Rc8 {[%clk 0:00:58]} 29. Be7 {[%clk 0:00:25]}  Rxc4 {[%clk 0:00:53]} 30. Rd8+ {[%clk 0:00:22]}  Kg7 {[%clk 0:00:48]} 31. Rxc4 {[%clk 0:00:21]}  Bxc4 {[%clk 0:00:47]} 32. Ra8 {[%clk 0:00:21]}  Bd4+ {[%clk 0:00:36]} 33. Kg3 {[%clk 0:00:18]}  Be5+ {[%clk 0:00:35]} 34. Kf2 {[%clk 0:00:17]}  Bxa2 {[%clk 0:00:34]} 35. Rxa3 {[%clk 0:00:15]}  Bc4 {[%clk 0:00:34]} 36. Ra8 {[%clk 0:00:14]}  b5 {[%clk 0:00:33]} 37. Bf8+ {[%clk 0:00:13]}  Kf6 {[%clk 0:00:32]} 38. Bxh6 {[%clk 0:00:13]}  Kf5 {[%clk 0:00:28]} 39. g3 {[%clk 0:00:13]}  Bd4+ {[%clk 0:00:26]} 40. Be3 {[%clk 0:00:13]}  Be5 {[%clk 0:00:26]} 41. Ra6 {[%clk 0:00:10]}  Ke4 {[%clk 0:00:25]} 42. Bf4 {[%clk 0:00:06]}  Bd4+ {[%clk 0:00:24]} 43. Kg2 {[%clk 0:00:06]}  b4 {[%clk 0:00:24]} 44. Ra4 {[%clk 0:00:04]}  Bc3 {[%clk 0:00:18]} 0-1


[Site "https://www.chess.com"]

[Event "Titled Tuesday Blitz May 03 Late 2022"]
[White "Lehtosaari, Mauri"]
[Black "Ansh M Shah"]
[WhiteFideId "501999"]
[BlackFideId "25033379"]
[WhiteElo "2513"]
[BlackElo "1819"]
[Result "1-0"]
[Round "10"]
[TimeControl "180+1"]
[Date "2022.05.03"]
[WhiteClock "0:01:00"]
[BlackClock "0:00:18"]

1. d4 {[%clk 0:03:00]}  Nf6 {[%clk 0:02:59]} 2. Nf3 {[%clk 0:03:01]}  e6 {[%clk 0:02:59]} 3. Bg5 {[%clk 0:03:02]}  d5 {[%clk 0:02:59]} 4. Nbd2 {[%clk 0:03:02]}  Be7 {[%clk 0:02:59]} 5. e3 {[%clk 0:03:03]}  O-O {[%clk 0:03:00]} 6. Bd3 {[%clk 0:03:03]}  b6 {[%clk 0:02:59]} 7. O-O {[%clk 0:03:03]}  Bb7 {[%clk 0:03:00]} 8. Ne5 {[%clk 0:03:02]}  Nbd7 {[%clk 0:03:00]} 9. f4 {[%clk 0:03:03]}  c5 {[%clk 0:03:01]} 10. c3 {[%clk 0:03:03]}  Ne4 {[%clk 0:03:00]} 11. Bxe7 {[%clk 0:02:58]}  Qxe7 {[%clk 0:03:01]} 12. Nxd7 {[%clk 0:02:51]}  Qxd7 {[%clk 0:02:44]} 13. Nf3 {[%clk 0:02:51]}  f6 {[%clk 0:02:43]} 14. dxc5 {[%clk 0:02:47]}  Nxc5 {[%clk 0:02:41]} 15. Bc2 {[%clk 0:02:47]}  Rad8 {[%clk 0:02:37]} 16. Qe1 {[%clk 0:02:41]}  Qe7 {[%clk 0:02:31]} 17. Qh4 {[%clk 0:02:36]}  Ne4 {[%clk 0:02:26]} 18. Rad1 {[%clk 0:02:27]}  Ba6 {[%clk 0:02:09]} 19. Rfe1 {[%clk 0:02:21]}  Qc5 {[%clk 0:01:50]} 20. Nd2 {[%clk 0:02:05]}  g6 {[%clk 0:01:17]} 21. Qh3 {[%clk 0:01:51]}  Bc8 {[%clk 0:01:05]} 22. Nxe4 {[%clk 0:01:39]}  dxe4 {[%clk 0:01:06]} 23. Bb3 {[%clk 0:01:40]}  Rxd1 {[%clk 0:01:04]} 24. Rxd1 {[%clk 0:01:39]}  Kg7 {[%clk 0:01:01]} 25. Qg3 {[%clk 0:01:32]}  Rf7 {[%clk 0:00:58]} 26. Qf2 {[%clk 0:01:30]}  Rd7 {[%clk 0:00:57]} 27. Rxd7+ {[%clk 0:01:29]}  Bxd7 {[%clk 0:00:58]} 28. Qd2 {[%clk 0:01:30]}  Bc6 {[%clk 0:00:53]} 29. Bxe6 {[%clk 0:01:27]}  f5 {[%clk 0:00:51]} 30. Qd4+ {[%clk 0:01:24]}  Qxd4 {[%clk 0:00:51]} 31. cxd4 {[%clk 0:01:24]}  Kf6 {[%clk 0:00:50]} 32. Bc4 {[%clk 0:01:23]}  Ke7 {[%clk 0:00:49]} 33. Kf2 {[%clk 0:01:22]}  Kd6 {[%clk 0:00:48]} 34. Bg8 {[%clk 0:01:22]}  Ke7 {[%clk 0:00:37]} 35. Ke1 {[%clk 0:01:18]}  h6 {[%clk 0:00:34]} 36. Kd2 {[%clk 0:01:17]}  Kf8 {[%clk 0:00:32]} 37. Bc4 {[%clk 0:01:16]}  Ke7 {[%clk 0:00:33]} 38. Kc3 {[%clk 0:01:15]}  Kd6 {[%clk 0:00:33]} 39. Bf7 {[%clk 0:01:15]}  g5 {[%clk 0:00:33]} 40. g3 {[%clk 0:01:13]}  a5 {[%clk 0:00:30]} 41. b4 {[%clk 0:01:00]}  a4 {[%clk 0:00:19]} 42. fxg5 {[%clk 0:00:56]}  hxg5 {[%clk 0:00:11]} 43. h4 {[%clk 0:00:55]}  gxh4 {[%clk 0:00:11]} 44. gxh4 {[%clk 0:00:56]}  b5 {[%clk 0:00:12]} 45. d5 {[%clk 0:00:52]}  Bxd5 {[%clk 0:00:11]} 46. Bxd5 {[%clk 0:00:52]}  Kxd5 {[%clk 0:00:12]} 47. h5 {[%clk 0:00:53]}  Ke6 {[%clk 0:00:12]} 48. Kd4 {[%clk 0:00:53]}  Kf6 {[%clk 0:00:12]} 49. h6 {[%clk 0:00:51]}  Kg6 {[%clk 0:00:11]} 50. Ke5 {[%clk 0:00:51]}  Kxh6 {[%clk 0:00:10]} 51. Kxf5 {[%clk 0:00:52]}  Kg7 {[%clk 0:00:10]} 52. Kxe4 {[%clk 0:00:52]}  Kf6 {[%clk 0:00:10]} 53. Kd5 {[%clk 0:00:52]}  Kf5 {[%clk 0:00:11]} 54. a3 {[%clk 0:00:52]}  Kf6 {[%clk 0:00:10]} 55. Kc5 {[%clk 0:00:53]}  Ke5 {[%clk 0:00:11]} 56. Kxb5 {[%clk 0:00:54]}  Ke4 {[%clk 0:00:11]} 57. Kxa4 {[%clk 0:00:54]}  Kxe3 {[%clk 0:00:12]} 58. Kb5 {[%clk 0:00:55]}  Kd4 {[%clk 0:00:13]} 59. a4 {[%clk 0:00:55]}  Kd5 {[%clk 0:00:14]} 60. Kb6 {[%clk 0:00:55]}  Kd6 {[%clk 0:00:15]} 61. b5 {[%clk 0:00:56]}  Kd7 {[%clk 0:00:15]} 62. Kb7 {[%clk 0:00:56]}  Kd6 {[%clk 0:00:16]} 63. b6 {[%clk 0:00:57]}  Kc5 {[%clk 0:00:17]} 64. a5 {[%clk 0:00:58]}  Kb5 {[%clk 0:00:18]} 65. a6 {[%clk 0:00:59]}  Ka5 {[%clk 0:00:17]} 66. a7 {[%clk 0:00:59]}  Kb5 {[%clk 0:00:18]} 67. a8=Q {[%clk 0:01:00]} 1-0


[Site "https://www.chess.com"]

[Event "Titled Tuesday Blitz May 03 Late 2022"]
[White "Licznerski, Lukasz"]
[Black "Kollars, Dmitrij"]
[WhiteFideId "1179250"]
[BlackFideId "12909572"]
[WhiteElo "2422"]
[BlackElo "2584"]
[Result "1-0"]
[Round "10"]
[TimeControl "180+1"]
[Date "2022.05.03"]
[WhiteClock "0:00:27"]
[BlackClock "0:00:51"]

1. e4 {[%clk 0:03:00]}  e5 {[%clk 0:02:56]} 2. Nf3 {[%clk 0:03:01]}  Nc6 {[%clk 0:02:55]} 3. Bb5 {[%clk 0:03:01]}  f5 {[%clk 0:02:55]} 4. Nc3 {[%clk 0:03:01]}  fxe4 {[%clk 0:02:54]} 5. Nxe4 {[%clk 0:03:02]}  Nf6 {[%clk 0:02:53]} 6. Qe2 {[%clk 0:03:01]}  d5 {[%clk 0:02:53]} 7. Nxf6+ {[%clk 0:03:01]}  gxf6 {[%clk 0:02:54]} 8. d4 {[%clk 0:03:02]}  Bg7 {[%clk 0:02:54]} 9. dxe5 {[%clk 0:03:01]}  O-O {[%clk 0:02:55]} 10. Bxc6 {[%clk 0:03:02]}  bxc6 {[%clk 0:02:56]} 11. e6 {[%clk 0:03:02]}  Re8 {[%clk 0:02:50]} 12. O-O {[%clk 0:03:02]}  Bxe6 {[%clk 0:02:51]} 13. Nd4 {[%clk 0:03:02]}  Qd7 {[%clk 0:02:47]} 14. Nxe6 {[%clk 0:02:54]}  Qxe6 {[%clk 0:02:48]} 15. Qa6 {[%clk 0:02:37]}  c5 {[%clk 0:02:40]} 16. Qb7 {[%clk 0:02:35]}  Qd6 {[%clk 0:02:36]} 17. Qb5 {[%clk 0:02:13]}  f5 {[%clk 0:02:26]} 18. g3 {[%clk 0:02:04]}  Rab8 {[%clk 0:02:18]} 19. Qd3 {[%clk 0:02:02]}  Qe6 {[%clk 0:02:14]} 20. Bf4 {[%clk 0:01:43]}  Rxb2 {[%clk 0:02:10]} 21. Rae1 {[%clk 0:01:30]}  Qxe1 {[%clk 0:02:09]} 22. Rxe1 {[%clk 0:01:31]}  Rxe1+ {[%clk 0:02:10]} 23. Kg2 {[%clk 0:01:32]}  c6 {[%clk 0:01:50]} 24. Qxf5 {[%clk 0:01:31]}  Re2 {[%clk 0:01:19]} 25. Qc8+ {[%clk 0:01:19]}  Kf7 {[%clk 0:01:19]} 26. Qd7+ {[%clk 0:01:17]}  Kg8 {[%clk 0:01:16]} 27. Qxc6 {[%clk 0:01:10]}  Rbxc2 {[%clk 0:01:14]} 28. Qxd5+ {[%clk 0:01:11]}  Kf8 {[%clk 0:01:14]} 29. Bd6+ {[%clk 0:01:05]}  Ke8 {[%clk 0:01:12]} 30. Bxc5 {[%clk 0:00:59]}  Bc3 {[%clk 0:01:09]} 31. Qg8+ {[%clk 0:00:55]}  Kd7 {[%clk 0:01:08]} 32. Qxh7+ {[%clk 0:00:55]}  Kc6 {[%clk 0:01:08]} 33. Bxa7 {[%clk 0:00:53]}  Be1 {[%clk 0:01:08]} 34. Qf5 {[%clk 0:00:47]}  Rxa2 {[%clk 0:01:08]} 35. Qf3+ {[%clk 0:00:35]}  Kb5 {[%clk 0:01:05]} 36. Be3 {[%clk 0:00:33]}  Bb4 {[%clk 0:00:56]} 37. h4 {[%clk 0:00:32]}  Reb2 {[%clk 0:00:52]} 38. h5 {[%clk 0:00:32]}  Ra1 {[%clk 0:00:51]} 39. Bd4 {[%clk 0:00:27]} 1-0


[Site "https://www.chess.com"]

[Event "Titled Tuesday Blitz May 03 Late 2022"]
[White "Meduri, Aakaash"]
[Black "Romero Ruscalleda, Josep"]
[WhiteFideId "2032252"]
[BlackFideId "2231859"]
[WhiteElo "2096"]
[BlackElo "2278"]
[Result "0-1"]
[Round "10"]
[TimeControl "180+1"]
[Date "2022.05.03"]
[WhiteClock "0:00:01"]
[BlackClock "0:00:41"]

1. e4 {[%clk 0:03:00]}  g6 {[%clk 0:03:00]} 2. Bc4 {[%clk 0:03:00]}  Bg7 {[%clk 0:03:01]} 3. c3 {[%clk 0:03:01]}  d6 {[%clk 0:03:01]} 4. d4 {[%clk 0:03:01]}  Nf6 {[%clk 0:03:00]} 5. f3 {[%clk 0:02:57]}  O-O {[%clk 0:02:59]} 6. Be3 {[%clk 0:02:53]}  d5 {[%clk 0:02:54]} 7. Bd3 {[%clk 0:02:48]}  dxe4 {[%clk 0:02:46]} 8. fxe4 {[%clk 0:02:48]}  e5 {[%clk 0:02:45]} 9. d5 {[%clk 0:02:48]}  c6 {[%clk 0:02:45]} 10. c4 {[%clk 0:02:47]}  Nxe4 {[%clk 0:02:44]} 11. Nf3 {[%clk 0:02:37]}  cxd5 {[%clk 0:02:42]} 12. cxd5 {[%clk 0:01:58]}  Qxd5 {[%clk 0:02:40]} 13. Qe2 {[%clk 0:01:59]}  Nc5 {[%clk 0:02:37]} 14. Bc4 {[%clk 0:01:57]}  Qc6 {[%clk 0:02:31]} 15. Nc3 {[%clk 0:01:57]}  Bg4 {[%clk 0:02:23]} 16. Bd5 {[%clk 0:01:34]}  Qc8 {[%clk 0:02:22]} 17. b4 {[%clk 0:00:41]}  Nca6 {[%clk 0:02:10]} 18. Rc1 {[%clk 0:00:37]}  Nxb4 {[%clk 0:02:01]} 19. O-O {[%clk 0:00:33]}  N4c6 {[%clk 0:01:56]} 20. Bc5 {[%clk 0:00:20]}  Nd4 {[%clk 0:01:43]} 21. Qc4 {[%clk 0:00:16]}  Nxf3+ {[%clk 0:01:30]} 22. gxf3 {[%clk 0:00:10]}  Bh3 {[%clk 0:01:28]} 23. Rfe1 {[%clk 0:00:06]}  Qf5 {[%clk 0:01:18]} 24. Bxf8 {[%clk 0:00:04]}  Qg5+ {[%clk 0:01:12]} 25. Kf2 {[%clk 0:00:05]}  Qg2+ {[%clk 0:01:00]} 26. Ke3 {[%clk 0:00:05]}  Bxf8 {[%clk 0:00:58]} 27. Bxf7+ {[%clk 0:00:05]}  Kg7 {[%clk 0:00:59]} 28. Ne4 {[%clk 0:00:04]}  Nc6 {[%clk 0:00:53]} 29. Rg1 {[%clk 0:00:03]}  Qxh2 {[%clk 0:00:51]} 30. Bg8 {[%clk 0:00:04]}  Qf4+ {[%clk 0:00:50]} 31. Kf2 {[%clk 0:00:03]}  Nd4 {[%clk 0:00:45]} 32. Rce1 {[%clk 0:00:01]}  Qxf3# {[%clk 0:00:41]} 0-1


[Site "https://www.chess.com"]